{"text_format":"1","workbook":"xlsx","n_sheets":7,"sheets":["accessoire","druk wilo","WiloSelect","ProductInfo","Info Produit","PDF","Debiet"],"not_rendered":{"charts":0,"images":21,"macros":1,"external_links":0,"defined_names":3,"comments":0,"pivot_tables":0},"unopened":[],"bounds":{"document_bytes":16777216,"sheet_cells":100000,"rows_first":2000,"rows_last":500,"rows_between":2000,"halvings":0,"cell_chars":16384,"cell_head_chars":4096},"cells_cut":0,"cells_raw":0,"read":"whole","date_system":"1900"}

{"sheet":"accessoire","index":0,"n_rows":28,"n_cols":7,"rows_kept":28,"cut":false,"hidden":true,"merged":[]}
["Art no.","Type","Beschrijving","Description","Brut Prijs 2022","Net Prijs","Art no."]
[0,null,null,null,null,null,0]
[2521290,"DT5 DUO 80 PN 10","Expansievat","Vase d'expension",762.67,null,2521290]
[2521291,"DT5 DUO 100 PN 10","Expansievat","Vase d'expension",836.97,null,2521291]
[2521292,"DT5 DUO 200 PN 10","Expansievat","Vase d'expension",1391.65,null,2521292]
[2521293,"DT5 DUO 300 PN 10","Expansievat","Vase d'expension",1604.61,null,2521293]
[2521294,"DT5 DUO 500 PN 10","Expansievat","Vase d'expension",1817.56,null,2521294]
[2511823,"DE 200","Expansievat","Vase d'expension",1025.18,null,2511823]
[2511831,"DE 500","Expansievat","Vase d'expension",1768.05,null,2511831]
[2515523,"DE 60","Expansievat","Vase d'expension",386.29,null,2515523]
[2515524,"DE 80","Expansievat","Vase d'expension",480.41,null,2515524]
[2515525,"DE 100","Expansievat","Vase d'expension",658.68,null,2515525]
[2515526,"DE 300","Expansievat","Vase d'expension",1099.44,null,2515526]
[2160448,"Indienststelling/Mise en Service AF150-400","Indienststelling","Mise-en-service",367.84,null,2160448]
[2160445,"Indienststelling /Mise en Service RAIN/SANI-S","Indienststelling","Mise-en-service",242.79,null,2160445]
[2025973,"1 1/4\" SE - 1,5m","Aanzuigslang","Flexible d'aspiration",110.28,null,2025973]
[2024960,"GR 5/4\"","Aanzuigkorf","Crépine d'aspiration",125.72,null,2024960]
[2004431,"Vlotterschakelaar/Contacteur à flotteur WA","Vlotterschakelaar","Flotteur",227.25,null,2004431]
[4104132,"TWI5-SE-306DM","Laadpomp","Pompe de charge",1097.8,null,4104132]
[4104134,"TWI5-SE-903DM","Laadpomp","Pompe de charge",1332.95,null,4104134]
[4104127,"TWI5-SE-304EM","Laadpomp","Pompe de charge",1061.6400000000001,null,4104127]
[4144976,"TWI5-SE-504EM","Laadpomp","Pompe de charge",1185.0999999999999,null,4144976]
[4048411,"TM 32/8","Laadpomp","Pompe de charge",343.91,null,4048411]
[4082990,"ESK1","Schakelkast laadpomp","Coffret de commande pompe de charge",616.72,null,4082990]
[2512862,"KAST ELEKTRON. + SENSOR/COFFR. ELECTRON. + CAPTEUR",null,null,695.02,null,2047022]
[2063928,"TS 40/10 1-230-50-2-10M","Laadpomp","Pompe de charge",840.99,null,2063928]
[2063927,"TS 40/10 3-400-50-2-10M","Laadpomp","Pompe de charge",877.99,null,2063927]
[2926751,"Aansluitset AG 1\"/Kit de raccordement AG 1\"","Aansluitset Expansievat","Kit de raccordement Vase d'expansion",239.09,null,2926751]

{"sheet":"druk wilo","index":1,"n_rows":17,"n_cols":25,"rows_kept":17,"cut":false,"hidden":true,"merged":[]}
["Art no.","Type","P1H","P2H","P3H","P1Q","P2Q","P3Q","Beschrijving","Gamma","brut Price 2022","net price","Aantal Pompen","Frequentiesturing","Expansievat","Startup","Aanzuigleiding","Aanzuigkorf","Laadpomp Ts","Laadpomp Twi","Vlotter AF400","Schakelkast Laadpomp","Koppeling expansievat","Beschrijving","Description"]
[2551472,"RAIN 3-25 ",45.1,29.9,11.4,0.5,2.8,4.47,null,"RAIN3",3353.77,null,1,"NEEN",2515525,2160445,2024960,2025973,4048411,4104127,null,null,2926751,"Stekkerklare enkelpompen-watervoorzieningsinstallatie als compacte module voor eengezinswoningen en kleine utiliteitsbouw.\n\nVoordelen\n- Gemakkelijke installatie met diverse aansluitmogelijkheden voor stadswater, aanzuiging regenwater \n   en persleiding\n- Controller met kleur LCD touchscreen met permanente weergave vulpeil regenwatertank, systeemdruk, \n   en de bedrijfsstatus\n- Aansluiting laadpomp mogelijk\n- Automatische overschakeling stadswater\n- Belgaqua gekeurd (DIN EN 1717)\n- Potentiaalvrij contact voor optioneel extern alarm\n- Automatische verversing water wachttank\n- Droogloopbeveiliging\n- Afdekkap voor- en achteraan\n- Update Wilo-service via WiFi","Station de récupération d'eau de pluie à pompe simple, prête à être branchée, en module compact pour maisons individuelles et petits locaux commerciaux.\n\nAvantages\n- Installation simple avec multiples possibilités de raccordement pour eau de ville, aspiration eau de \n  pluie et conduite de refoulement\n- Controller avec écran tactile couleurs LCD avec affichage permanent du niveau de la citerne d’eau de pluie, \n  de la pression de service et du mode d’utilisation\n- Raccordement possible d’une pompe de charge\n- Permutation automatique sur l’eau de ville\n- Certifié Belgaqua (DIN EN 1717)\n- Contact libre de potentiel pour alarme externe\n- Renouvellement automatique de l’eau de la bâche d’attente\n- Protection marche à sec\n- Couvercle à l’avant et à l’arrière\n- Update Wilo-service via WiFi"]
[2551471,"RAIN 3-24",36.799999999999997,25.6,8.35,0.5,2.52,4.5199999999999996,null,"RAIN3",3014,null,1,"NEEN",2515525,2160445,2024960,2025973,4048411,4104127,null,null,2926751,"Stekkerklare enkelpompen-watervoorzieningsinstallatie als compacte module voor eengezinswoningen en kleine utiliteitsbouw.\n\nVoordelen\n- Gemakkelijke installatie met diverse aansluitmogelijkheden voor stadswater, aanzuiging regenwater \n   en persleiding\n- Controller met kleur LCD touchscreen met permanente weergave vulpeil regenwatertank, systeemdruk, \n   en de bedrijfsstatus\n- Aansluiting laadpomp mogelijk\n- Automatische overschakeling stadswater\n- Belgaqua gekeurd (DIN EN 1717)\n- Potentiaalvrij contact voor optioneel extern alarm\n- Automatische verversing water wachttank\n- Droogloopbeveiliging\n- Afdekkap voor- en achteraan\n- Update Wilo-service via WiFi","Station de récupération d'eau de pluie à pompe simple, prête à être branchée, en module compact pour maisons individuelles et petits locaux commerciaux.\n\nAvantages\n- Installation simple avec multiples possibilités de raccordement pour eau de ville, aspiration eau de \n  pluie et conduite de refoulement\n- Controller avec écran tactile couleurs LCD avec affichage permanent du niveau de la citerne d’eau de pluie, \n  de la pression de service et du mode d’utilisation\n- Raccordement possible d’une pompe de charge\n- Permutation automatique sur l’eau de ville\n- Certifié Belgaqua (DIN EN 1717)\n- Contact libre de potentiel pour alarme externe\n- Renouvellement automatique de l’eau de la bâche d’attente\n- Protection marche à sec\n- Couvercle à l’avant et à l’arrière\n- Update Wilo-service via WiFi"]
[2551470,"RAIN 1-45",51.4,35,16,0.5,3.96,6,null,"RAIN1",2486.5500000000002,null,1,"NEEN",2515525,2160445,2024960,2025973,4048411,4144976,null,null,2926751,"Stekkerklare enkelpompen-watervoorzieningsinstallatie als compacte module voor eengezinswoningen en kleine utiliteitsbouw.\n\nVoordelen\n- Gemakkelijke installatie met diverse aansluitmogelijkheden voor stadswater, \n   aanzuiging regenwater en persleiding\n- Gebruiksvriendelijke controller met drukknoppen en weergave van beschikbaarheid van regenwater, \n   systeemdruk, en de bedrijfsstatus\n- Aansluiting laadpomp mogelijk\n- Automatische overschakeling stadswater\n- Belgaqua gekeurd (DIN EN 1717)\n- Potentiaalvrij contact voor optioneel extern alarm\n- Automatische verversing water wachttank\n- Droogloopbeveiliging","Station de récupération d'eau de pluie à pompe simple, prête à être branchée, en module compact pour maisons individuelles et petits locaux commerciaux.\n\nAvantages\n- Installation simple avec multiples possibilités de raccordement pour eau de ville, aspiration eau de \n   pluie et conduite de refoulement\n- Controller facile à l’emploi, avec boutons poussoirs et affichage de la disponibilité en eau de pluie, \n  pression de service et du mode d’utilisation\n- Raccordement possible d’une pompe de charge\n- Permutation automatique sur l’eau de ville\n- Certifié Belgaqua (DIN EN 1717)\n- Contact libre de potentiel pour alarme externe\n- Renouvellement automatique de l’eau de la bâche d’attente\n- Protection marche à sec"]
[2551469,"RAIN 1-25 ",45.1,29.9,11.4,0.5,2.8,4.47,null,"RAIN1",2359.15,null,1,"NEEN",2515525,2160445,2024960,2025973,4048411,4104127,null,null,2926751,"Stekkerklare enkelpompen-watervoorzieningsinstallatie als compacte module voor eengezinswoningen en kleine utiliteitsbouw.\n\nVoordelen\n- Gemakkelijke installatie met diverse aansluitmogelijkheden voor stadswater, \n   aanzuiging regenwater en persleiding\n- Gebruiksvriendelijke controller met drukknoppen en weergave van beschikbaarheid van regenwater, \n   systeemdruk, en de bedrijfsstatus\n- Aansluiting laadpomp mogelijk\n- Automatische overschakeling stadswater\n- Belgaqua gekeurd (DIN EN 1717)\n- Potentiaalvrij contact voor optioneel extern alarm\n- Automatische verversing water wachttank\n- Droogloopbeveiliging","Station de récupération d'eau de pluie à pompe simple, prête à être branchée, en module compact pour maisons individuelles et petits locaux commerciaux.\n\nAvantages\n- Installation simple avec multiples possibilités de raccordement pour eau de ville, aspiration eau de \n   pluie et conduite de refoulement\n- Controller facile à l’emploi, avec boutons poussoirs et affichage de la disponibilité en eau de pluie, \n  pression de service et du mode d’utilisation\n- Raccordement possible d’une pompe de charge\n- Permutation automatique sur l’eau de ville\n- Certifié Belgaqua (DIN EN 1717)\n- Contact libre de potentiel pour alarme externe\n- Renouvellement automatique de l’eau de la bâche d’attente\n- Protection marche à sec"]
[2551468,"RAIN 1-24",36.799999999999997,25.6,8.35,0.5,2.52,4.5199999999999996,null,"RAIN1",2322.14,null,1,"NEEN",2515525,2160445,2024960,2025973,4048411,4104127,null,null,2926751,"Stekkerklare enkelpompen-watervoorzieningsinstallatie als compacte module voor eengezinswoningen en kleine utiliteitsbouw.\n\nVoordelen\n- Gemakkelijke installatie met diverse aansluitmogelijkheden voor stadswater, \n   aanzuiging regenwater en persleiding\n- Gebruiksvriendelijke controller met drukknoppen en weergave van beschikbaarheid van regenwater, \n   systeemdruk, en de bedrijfsstatus\n- Aansluiting laadpomp mogelijk\n- Automatische overschakeling stadswater\n- Belgaqua gekeurd (DIN EN 1717)\n- Potentiaalvrij contact voor optioneel extern alarm\n- Automatische verversing water wachttank\n- Droogloopbeveiliging","Station de récupération d'eau de pluie à pompe simple, prête à être branchée, en module compact pour maisons individuelles et petits locaux commerciaux.\n\nAvantages\n- Installation simple avec multiples possibilités de raccordement pour eau de ville, aspiration eau de \n   pluie et conduite de refoulement\n- Controller facile à l’emploi, avec boutons poussoirs et affichage de la disponibilité en eau de pluie, \n  pression de service et du mode d’utilisation\n- Raccordement possible d’une pompe de charge\n- Permutation automatique sur l’eau de ville\n- Certifié Belgaqua (DIN EN 1717)\n- Contact libre de potentiel pour alarme externe\n- Renouvellement automatique de l’eau de la bâche d’attente\n- Protection marche à sec"]
[2504591,"AF 400-2 MP 605 DM",55.2,35.1,16.600000000000001,0.3,5.51,7.89,null,"AF400",10631.94,null,2,"NEEN",2515525,2160448,2024960,2025973,2063927,4104132,2004431,null,2926751,"Automatische regenwaterrecuperatie-installatie als compacte module voor de professionele en industriële regenwatertoevoer uit een regenwaterput met laadpomp. \n\nBestaande uit :\n- Twee geluidsarme, normaalzuigende horizontale hogedrukpompen. \n- Grote hybride container (400  l) met vraaggestuurde suppletie van vers water bij niet-gevulde citerne. \n- Doorstroomd membraandrukvat (8 l) conform DIN 4807 voor energiebesparing bij kleine lekkages in \n   het gebouw. \n- Elektronische besturing RainControl Hybrid voor aansluiting van de drukverhogingspompen en laad- \n   pomp met besturingsschakelaar voor iedere pomp \n\nAlle onderdelen die met de vloeistof in aanraking komen zijn corrosievrij. \nToestel belgaqua gekeurd (DIN EN 1717).","Installation automatique de distribution d'eau de pluie et de réalimentation en eau fraîche en tant que module compact pour la distribution commerciale et industrielle de l'eau de pluie à partir d'une citerne d'eau de pluie à l'aide d'une pompe de charge.\n\nComposé de :\n- Deux pompes haute pression horizontales silencieuses et non auto-amorçantes.\n- Grand conteneur hybride (400 l) avec réapprovisionnement en eau douce quand la citerne est vide.\n- Réservoir sous pression à membrane de passage (8 l) selon DIN 4807 pour des économies d'énergie \n  avec de petites fuites dans le bâtiment.\n- Commande électronique RainControl Hybrid pour le raccordement des pompes de surpression et la \ncharge pompe avec interrupteur de commande pour chaque pompe\n\nToutes les pièces qui entrent en contact avec le liquide sont exemptes de corrosion.\nAppareil homologué belgaqua (DIN EN 1717). "]
[2504588,"AF 400-2 MP 305 DM",53.1,34,10.7,0.3,2.79,5,null,"AF400",9984.68,null,2,"NEEN",2515525,2160448,2024960,2025973,2063927,4104132,2004431,null,2926751,"Automatische regenwaterrecuperatie-installatie als compacte module voor de professionele en industriële regenwatertoevoer uit een regenwaterput met laadpomp. \n\nBestaande uit :\n- Twee geluidsarme, normaalzuigende horizontale hogedrukpompen. \n- Grote hybride container (400  l) met vraaggestuurde suppletie van vers water bij niet-gevulde citerne. \n- Doorstroomd membraandrukvat (8 l) conform DIN 4807 voor energiebesparing bij kleine lekkages in \n   het gebouw. \n- Elektronische besturing RainControl Hybrid voor aansluiting van de drukverhogingspompen en laad- \n   pomp met besturingsschakelaar voor iedere pomp \n\nAlle onderdelen die met de vloeistof in aanraking komen zijn corrosievrij. \nToestel belgaqua gekeurd (DIN EN 1717).","Installation automatique de distribution d'eau de pluie et de réalimentation en eau fraîche en tant que module compact pour la distribution commerciale et industrielle de l'eau de pluie à partir d'une citerne d'eau de pluie à l'aide d'une pompe de charge.\n\nComposé de :\n- Deux pompes haute pression horizontales silencieuses et non auto-amorçantes.\n- Grand conteneur hybride (400 l) avec réapprovisionnement en eau douce quand la citerne est vide.\n- Réservoir sous pression à membrane de passage (8 l) selon DIN 4807 pour des économies d'énergie \n  avec de petites fuites dans le bâtiment.\n- Commande électronique RainControl Hybrid pour le raccordement des pompes de surpression et la \ncharge pompe avec interrupteur de commande pour chaque pompe\n\nToutes les pièces qui entrent en contact avec le liquide sont exemptes de corrosion.\nAppareil homologué belgaqua (DIN EN 1717). "]
[2552895,"AF 400-2 HELIX VE606/K/ECE2+1-S",74.8,52.9,24.3,0.5,8.5,12.2,null,"AF400",18491.64,null,2,"JA",2515525,2160448,2024960,2025973,2063927,4104134,2004431,null,2926751,"Automatische regenwaterrecuperatie-installatie als compacte module voor de professionele en industriële regenwatertoevoer uit een regenwaterput met laadpomp. \n\nBestaande uit :\n- Twee frequentiegestuurde verticale hogedrukpompen. \n- Grote hybride container (400  l) met vraaggestuurde suppletie van vers water bij niet-gevulde citerne. \n- Doorstroomd membraandrukvat (8 l) conform DIN 4807 voor energiebesparing bij kleine lekkages in \n   het gebouw. \n- Elektronische besturing RainControl Hybrid voor aansluiting van de drukverhogingspompen en laad- \n   pomp met besturingsschakelaar voor iedere pomp \n\nAlle onderdelen die met de vloeistof in aanraking komen zijn corrosievrij. \nToestel belgaqua gekeurd (DIN EN 1717).","Installation automatique de distribution d'eau de pluie et de réalimentation en eau fraîche en tant que module compact pour la distribution commerciale et industrielle de l'eau de pluie à partir d'une citerne d'eau de pluie à l'aide d'une pompe de charge.\n\nComposé de :\n- Deux pompes verticales à variation de fréquence.\n- Grand conteneur hybride (400 l) avec réapprovisionnement en eau douce quand la citerne est vide.\n- Réservoir sous pression à membrane de passage (8 l) selon DIN 4807 pour des économies d'énergie \n  avec de petites fuites dans le bâtiment.\n- Commande électronique RainControl Hybrid pour le raccordement des pompes de surpression et la \ncharge pompe avec interrupteur de commande pour chaque pompe\n\nToutes les pièces qui entrent en contact avec le liquide sont exemptes de corrosion.\nAppareil homologué belgaqua (DIN EN 1717). "]
[2550882,"AF 400-2 HELIX VE1004/VRCH2+1-S",52,38,9,0.5,13.1,18,null,"AF400",20186.95,null,2,"JA",2515525,2160448,2024960,2025973,2063927,4104134,2004431,null,2926751,"Automatische regenwaterrecuperatie-installatie als compacte module voor de professionele en industriële regenwatertoevoer uit een regenwaterput met laadpomp. \n\nBestaande uit :\n- Twee frequentiegestuurde verticale hogedrukpompen. \n- Grote hybride container (400  l) met vraaggestuurde suppletie van vers water bij niet-gevulde citerne. \n- Doorstroomd membraandrukvat (8 l) conform DIN 4807 voor energiebesparing bij kleine lekkages in \n   het gebouw. \n- Elektronische besturing RainControl Hybrid voor aansluiting van de drukverhogingspompen en laad- \n   pomp met besturingsschakelaar voor iedere pomp \n\nAlle onderdelen die met de vloeistof in aanraking komen zijn corrosievrij. \nToestel belgaqua gekeurd (DIN EN 1717).","Installation automatique de distribution d'eau de pluie et de réalimentation en eau fraîche en tant que module compact pour la distribution commerciale et industrielle de l'eau de pluie à partir d'une citerne d'eau de pluie à l'aide d'une pompe de charge.\n\nComposé de :\n- Deux pompes verticales à variation de fréquence.\n- Grand conteneur hybride (400 l) avec réapprovisionnement en eau douce quand la citerne est vide.\n- Réservoir sous pression à membrane de passage (8 l) selon DIN 4807 pour des économies d'énergie \n  avec de petites fuites dans le bâtiment.\n- Commande électronique RainControl Hybrid pour le raccordement des pompes de surpression et la \ncharge pompe avec interrupteur de commande pour chaque pompe\n\nToutes les pièces qui entrent en contact avec le liquide sont exemptes de corrosion.\nAppareil homologué belgaqua (DIN EN 1717). "]
[2544265,"AF 400-2 HELIX V609/K/RCH2+1-S",72.3,62.1,22,0.5,5,10,null,"AF400",14438.13,null,2,"NEEN",2515525,2160448,2024960,2025973,2063927,4104134,2004431,null,2926751,"Automatische regenwaterrecuperatie-installatie als compacte module voor de professionele en industriële regenwatertoevoer uit een regenwaterput met laadpomp. \n\nBestaande uit :\n- Twee geluidsarme, normaalzuigende verticale hogedrukpompen. \n- Grote hybride container (400  l) met vraaggestuurde suppletie van vers water bij niet-gevulde citerne. \n- Doorstroomd membraandrukvat (8 l) conform DIN 4807 voor energiebesparing bij kleine lekkages in \n   het gebouw. \n- Elektronische besturing RainControl Hybrid voor aansluiting van de drukverhogingspompen en laad- \n   pomp met besturingsschakelaar voor iedere pomp \n\nAlle onderdelen die met de vloeistof in aanraking komen zijn corrosievrij. \nToestel belgaqua gekeurd (DIN EN 1717).","Installation automatique de distribution d'eau de pluie et de réalimentation en eau fraîche en tant que module compact pour la distribution commerciale et industrielle de l'eau de pluie à partir d'une citerne d'eau de pluie à l'aide d'une pompe de charge.\n\nComposé de :\n- Deux pompes haute pression verticales silencieuses et non auto-amorçantes.\n- Grand conteneur hybride (400 l) avec réapprovisionnement en eau douce quand la citerne est vide.\n- Réservoir sous pression à membrane de passage (8 l) selon DIN 4807 pour des économies d'énergie \n  avec de petites fuites dans le bâtiment.\n- Commande électronique RainControl Hybrid pour le raccordement des pompes de surpression et la \ncharge pompe avec interrupteur de commande pour chaque pompe\n\nToutes les pièces qui entrent en contact avec le liquide sont exemptes de corrosion.\nAppareil homologué belgaqua (DIN EN 1717). "]
[2552141,"AF 400-2 HELIX V1011/K/RCH2+1-S",114.1,90.2,33.5,1.5,10,16,null,"AF400",16844.5,null,2,"NEEN",2515525,2160448,2024960,2025973,2063927,4104134,2004431,null,2926751,"Automatische regenwaterrecuperatie-installatie als compacte module voor de professionele en industriële regenwatertoevoer uit een regenwaterput met laadpomp. \n\nBestaande uit :\n- Twee geluidsarme, normaalzuigende verticale hogedrukpompen. \n- Grote hybride container (400  l) met vraaggestuurde suppletie van vers water bij niet-gevulde citerne. \n- Doorstroomd membraandrukvat (8 l) conform DIN 4807 voor energiebesparing bij kleine lekkages in \n   het gebouw. \n- Elektronische besturing RainControl Hybrid voor aansluiting van de drukverhogingspompen en laad- \n   pomp met besturingsschakelaar voor iedere pomp \n\nAlle onderdelen die met de vloeistof in aanraking komen zijn corrosievrij. \nToestel belgaqua gekeurd (DIN EN 1717).","Installation automatique de distribution d'eau de pluie et de réalimentation en eau fraîche en tant que module compact pour la distribution commerciale et industrielle de l'eau de pluie à partir d'une citerne d'eau de pluie à l'aide d'une pompe de charge.\n\nComposé de :\n- Deux pompes haute pression verticales silencieuses et non auto-amorçantes.\n- Grand conteneur hybride (400 l) avec réapprovisionnement en eau douce quand la citerne est vide.\n- Réservoir sous pression à membrane de passage (8 l) selon DIN 4807 pour des économies d'énergie \n  avec de petites fuites dans le bâtiment.\n- Commande électronique RainControl Hybrid pour le raccordement des pompes de surpression et la \ncharge pompe avec interrupteur de commande pour chaque pompe\n\nToutes les pièces qui entrent en contact avec le liquide sont exemptes de corrosion.\nAppareil homologué belgaqua (DIN EN 1717). "]
[2552223,"AF 400-2 HELIX V1009/K/RCH2+1-S",93.2,73.400000000000006,26.9,1.5,10,16,null,"AF400",16666.36,null,2,"NEEN",2515525,2160448,2024960,2025973,2063927,4104134,2004431,null,2926751,"Automatische regenwaterrecuperatie-installatie als compacte module voor de professionele en industriële regenwatertoevoer uit een regenwaterput met laadpomp. \n\nBestaande uit :\n- Twee geluidsarme, normaalzuigende verticale hogedrukpompen. \n- Grote hybride container (400  l) met vraaggestuurde suppletie van vers water bij niet-gevulde citerne. \n- Doorstroomd membraandrukvat (8 l) conform DIN 4807 voor energiebesparing bij kleine lekkages in \n   het gebouw. \n- Elektronische besturing RainControl Hybrid voor aansluiting van de drukverhogingspompen en laad- \n   pomp met besturingsschakelaar voor iedere pomp \n\nAlle onderdelen die met de vloeistof in aanraking komen zijn corrosievrij. \nToestel belgaqua gekeurd (DIN EN 1717).","Installation automatique de distribution d'eau de pluie et de réalimentation en eau fraîche en tant que module compact pour la distribution commerciale et industrielle de l'eau de pluie à partir d'une citerne d'eau de pluie à l'aide d'une pompe de charge.\n\nComposé de :\n- Deux pompes haute pression verticales silencieuses et non auto-amorçantes.\n- Grand conteneur hybride (400 l) avec réapprovisionnement en eau douce quand la citerne est vide.\n- Réservoir sous pression à membrane de passage (8 l) selon DIN 4807 pour des économies d'énergie \n  avec de petites fuites dans le bâtiment.\n- Commande électronique RainControl Hybrid pour le raccordement des pompes de surpression et la \ncharge pompe avec interrupteur de commande pour chaque pompe\n\nToutes les pièces qui entrent en contact avec le liquide sont exemptes de corrosion.\nAppareil homologué belgaqua (DIN EN 1717). "]
[2546625,"AF 400-2 HELIX V1008/K/RCH2+1-S",93.2,73.400000000000006,26.9,1.5,10,16,null,"AF400",14328.71,null,2,"NEEN",2515525,2160448,2024960,2025973,2063927,4104134,2004431,null,2926751,"Automatische regenwaterrecuperatie-installatie als compacte module voor de professionele en industriële regenwatertoevoer uit een regenwaterput met laadpomp. \n\nBestaande uit :\n- Twee geluidsarme, normaalzuigende verticale hogedrukpompen. \n- Grote hybride container (400  l) met vraaggestuurde suppletie van vers water bij niet-gevulde citerne. \n- Doorstroomd membraandrukvat (8 l) conform DIN 4807 voor energiebesparing bij kleine lekkages in \n   het gebouw. \n- Elektronische besturing RainControl Hybrid voor aansluiting van de drukverhogingspompen en laad- \n   pomp met besturingsschakelaar voor iedere pomp \n\nAlle onderdelen die met de vloeistof in aanraking komen zijn corrosievrij. \nToestel belgaqua gekeurd (DIN EN 1717).","Installation automatique de distribution d'eau de pluie et de réalimentation en eau fraîche en tant que module compact pour la distribution commerciale et industrielle de l'eau de pluie à partir d'une citerne d'eau de pluie à l'aide d'une pompe de charge.\n\nComposé de :\n- Deux pompes haute pression verticales silencieuses et non auto-amorçantes.\n- Grand conteneur hybride (400 l) avec réapprovisionnement en eau douce quand la citerne est vide.\n- Réservoir sous pression à membrane de passage (8 l) selon DIN 4807 pour des économies d'énergie \n  avec de petites fuites dans le bâtiment.\n- Commande électronique RainControl Hybrid pour le raccordement des pompes de surpression et la \ncharge pompe avec interrupteur de commande pour chaque pompe\n\nToutes les pièces qui entrent en contact avec le liquide sont exemptes de corrosion.\nAppareil homologué belgaqua (DIN EN 1717). "]
[2552896,"AF 400-1 HELIX VE606/K/ECE1+1-S",74.8,52.9,24.3,0.5,8.5,12.2,null,"AF400",13935.32,null,1,"JA",2515525,2160448,2024960,2025973,2063927,4104134,2004431,null,2926751,"Automatische regenwaterrecuperatie-installatie als compacte module voor de professionele en industriële regenwatertoevoer uit een regenwaterput met laadpomp. \n\nBestaande uit :\n- Eén frequentiegestuurde verticale hogedrukpomp. \n- Grote hybride container (400  l) met vraaggestuurde suppletie van vers water bij niet-gevulde citerne. \n- Doorstroomd membraandrukvat (8 l) conform DIN 4807 voor energiebesparing bij kleine lekkages in \n   het gebouw. \n- Elektronische besturing RainControl Hybrid voor aansluiting van de drukverhogingspompen en laad- \n   pomp met besturingsschakelaar voor iedere pomp \n\nAlle onderdelen die met de vloeistof in aanraking komen zijn corrosievrij. \nToestel belgaqua gekeurd (DIN EN 1717).","Installation automatique de distribution d'eau de pluie et de réalimentation en eau fraîche en tant que module compact pour la distribution commerciale et industrielle de l'eau de pluie à partir d'une citerne d'eau de pluie à l'aide d'une pompe de charge.\n\nComposé de :\n- Une pompe verticale à variation de fréquence.\n- Grand conteneur hybride (400 l) avec réapprovisionnement en eau douce quand la citerne est vide.\n- Réservoir sous pression à membrane de passage (8 l) selon DIN 4807 pour des économies d'énergie \n  avec de petites fuites dans le bâtiment.\n- Commande électronique RainControl Hybrid pour le raccordement des pompes de surpression et la \ncharge pompe avec interrupteur de commande pour chaque pompe\n\nToutes les pièces qui entrent en contact avec le liquide sont exemptes de corrosion.\nAppareil homologué belgaqua (DIN EN 1717). "]
[2531207,"AF 150-2 MC 605 EM",55.2,35.1,16.600000000000001,0.3,5.51,7.89,null,"AF150",7866.6,null,2,"NEEN",2515525,2160448,2024960,2025973,2063928,4144976,null,4082990,2926751,"Automatische regenwaterrecuperatie-installatie als compacte module voor appartementencomplexen en openbare gebouwen.\n\nBestaande uit : \n- Twee geluidsarme, zelfaanzuigende, horizontale hogedrukpompen\n- Schakelkast met permanente weergave van het peil in de kelder, de installatiedruk en de bedrijfs- \n   toestand via het LC-display\n- Buffertank (150 l) met vraaggestuurde suppletie van vers water bij niet-gevulde cisterne. \n- Doorstroomd membraandrukvat (8 l) conform DIN 4807 voor energiebesparing bij kleine lekkages\n   in het gebouw.\n\nAlle onderdelen die met het medium in aanraking komen zijn corrosievrij.\nToestel belgaqua gekeurd (DIN EN 1717).","Installation automatique de distribution d'eau de pluie et de réalimentation d'eau fraîche en tant que module compact pour immeuble résidentiel et bâtiments publics.\n\nComprenant : \n- Deux pompes multicellulaires horizontales et auto-amorçantes.\n- Armoire de commande avec affichage permanent du niveau de la citerne, de la pression du système \n   et du fonctionnement état via l'écran LCD \n- Réservoir de réalimentation (150 l) avec réalimentation d'eau fraîche en fonction des besoins en cas de \n   citerne non remplie. \n- Réservoir à vessie parcouru (8 l) selon DIN 4807 pour économie d'énergie avec des micro-fuites côté \n  bâtiment. \n\nToutes les pièces en contact avec le fluide résistent à la corrosion.\nProduit certifié Belgaqua (DIN EN 1717)"]
[2531205,"AF 150-2 MC 305 EM",53.1,34,10.7,0.3,2.79,5,null,"AF150",7403.44,null,2,"NEEN",2515525,2160448,2024960,2025973,2063928,4104127,null,4082990,2926751,"Automatische regenwaterrecuperatie-installatie als compacte module voor appartementencomplexen en openbare gebouwen.\n\nBestaande uit : \n- Twee geluidsarme, zelfaanzuigende, horizontale hogedrukpompen\n- Schakelkast met permanente weergave van het peil in de kelder, de installatiedruk en de bedrijfs- \n   toestand via het LC-display\n- Buffertank (150 l) met vraaggestuurde suppletie van vers water bij niet-gevulde cisterne. \n- Doorstroomd membraandrukvat (8 l) conform DIN 4807 voor energiebesparing bij kleine lekkages\n   in het gebouw.\n\nAlle onderdelen die met het medium in aanraking komen zijn corrosievrij.","Installation automatique de distribution d'eau de pluie et de réalimentation d'eau fraîche en tant que module compact pour immeuble résidentiel et bâtiments publics.\n\nComprenant : \n- Deux pompes multicellulaires horizontales et auto-amorçantes.\n- Armoire de commande avec affichage permanent du niveau de la citerne, de la pression du système et du fonctionnement état via l'écran LCD \n- Réservoir de réalimentation (150 l) avec réalimentation d'eau fraîche en fonction des besoins en cas de citerne non remplie. \n- Réservoir à vessie parcouru (8 l) selon DIN 4807 pour économie d'énergie avec des micro-fuites côté bâtiment. \n\nToutes les pièces en contact avec le fluide résistent à la corrosion.\nProduit certifié Belgaqua (DIN EN 1717)"]

{"sheet":"WiloSelect","index":2,"n_rows":48,"n_cols":12,"rows_kept":48,"cut":false,"hidden":false,"merged":[[0,0,1,12],[6,5,6,12],[6,0,6,3],[18,5,18,12],[20,2,20,3],[4,1,4,5],[2,1,2,5],[8,2,8,3],[12,2,12,3],[14,2,14,3],[16,2,16,3],[8,5,8,12],[47,7,47,8],[58,11,58,12],[59,11,59,12],[54,11,54,12],[55,11,55,12],[56,11,56,12],[57,11,57,12]]}
["POMPSELECTIE REGENWATER"]
[]
["Klant"]
[]
["Project"]
[]
["OPTIES",null,null,null,null,"PRODUCTSELECTIE"]
[]
["Taal / Language",null,"Nl",null,null,"Omschakelsysteem"]
[]
[]
[]
["Reservepomp",null,"Neen"]
[]
["Indienststelling",null,"Ja"]
[]
["Frequentiesturing",null,"Neen"]
[]
["BENODIGD PIEKDEBIET",null,3.8177816043033341,"m³/h",null,"Aanzuiging / Laadpomp"]
[]
["Toepassing",null,"School"]
[]
["Toestellen","Aantal","DN [mm]","Debiet [l/s]"]
["Kraan",5,20,0.5]
["Toilet & Urinoir met reservoir",10,15,0.13]
["Urinoir met directe spoeling",null,15,0.3]
["Toilet met directe spoeling",null,20,1]
["Wasmachine",4,15,0.15]
[]
["BENODIGDE OPVOERHOOGTE",null,{"$f":"B32+B34+(B33+B35)*0.05+15","v":26.15},"mWK"]
[]
["Hoogte stijgleiding",8,"m"]
["Lengte stijgleiding tot verste tappunt",20,"m"]
["Hoogte aanzuigleiding",2,"m"]
["Lengte aanzuigleiding",3,"m"]
[]
["PRODUCTLIJST"]
["Beschrijving","Artikelnr","Aantal","Frequentie- sturing",null,"LdV [mWK]","Debiet [m³/h]","Productlink","Beschrijving",null,"Bruto Prijs 2022","Opmerking"]
["Regenwaterecuperatiesysteem",2551470,1,"NEEN",null,26.15,3.82,"klik hier","RAIN 1-45",null,2486.5500000000002]
["Aanzuigkorf",2024960,1,null,null,null,null,"klik hier","GR 5/4\"",null,125.72]
["Aanzuigslang",2025973,1,null,null,null,null,"klik hier","1 1/4\" SE - 1,5m",null,110.28]
["Expansievat",2515525,1,null,null,null,null,"klik hier","DE 100",null,658.68]
["Aansluitset Expansievat",2926751,1,null,null,null,null,"klik hier","Aansluitset AG 1\"/Kit de raccordement AG 1\"",null,239.09]
["Indienststelling",2160445,1,null,null,null,null,null,"Indienststelling /Mise en Service RAIN/SANI-S",null,242.79]
[]
[]
[]
[null,null,null,null,null,null,null,"TOTALE BRUTO PRIJS EXCL BTW",null,null,{"$f":"SUMPRODUCT(C39:C45,K39:K45)","v":3863.11}]

{"sheet":"ProductInfo","index":3,"n_rows":21,"n_cols":9,"rows_kept":21,"cut":false,"hidden":false,"merged":[]}
[null,null,"RAIN1",null,"RAIN3",null,"RAINSYSTEM",null,"RAINSYSTEM"]
["Toepassing",null,null,null,null,null,"AF 150",null,"AF 400"]
[]
[]
[]
[]
[]
[]
[]
[]
["Eigenschappen"]
[]
["Aantal pompen",null,1,null,1,null,2,null,2]
["Benodigd aantal aanzuigleidingen",null,1,null,1,null,2,null,1]
["Mogelijkheid laadpomp",null,"ja",null,"ja",null,"neen",null,"ja"]
["Bruto  volume reservoir",null,"11 l",null,"11 l",null,"150 l",null,"400 l"]
["Netaansluiting",null,"1~230 V, 50 Hz",null,"1~230 V, 50 Hz",null,"1~230 V, 50 Hz",null,"3~400 V, 50 Hz"]
["Nominale stroom In max",null,"4,60 A",null,"4,60 A ",null,"7,20 A (2x)",null,"1,95 A (2x)"]
["Potentieel vrije contacten",null,"Alarm- en storingsmelding",null,"Alarm- en storingsmelding",null,"Bedrijfs- en storingsmelding",null,"Bedrijfs- en storingsmelding"]
["Afmetingen ",null,"672 x 414 x 682 mm",null,"672 x 414 x 682 mm",null,"750 x 600 x 1225 mm",null,"1440 x 780 x 1045 mm"]
["Gewicht max. ",null,"24 kg",null,"28 kg",null,"91 kg",null,"94 kg"]

{"sheet":"Info Produit","index":4,"n_rows":21,"n_cols":10,"rows_kept":21,"cut":false,"hidden":true,"merged":[]}
[null,null,"RAIN1",null,"RAIN3",null,"RAINSYSTEM",null,"RAINSYSTEM"]
["Application",null,null,null,null,null,"AF 150",null,"AF 400"]
[]
[]
[]
[]
[]
[]
[]
[]
["Caractéristiques"]
[]
["Nombre de pompes",null,"Non, 1 pompe",null,"Non, 1 pompe",null,"Oui, 2 pompes",null,"Oui, 2 pompes"]
["Nombre de conduites d'aspiration réquis",null,1,null,1,null,2,null,1]
["Option de pompe de chargement",null,"oui",null,"oui",null,"non",null,"oui"]
["Volume brut du réservoir",null,"11 l",null,"11 l",null,"150 l",null,"400 l"]
["Raccordement réseau",null,"1~230 V, 50 Hz",null,"1~230 V, 50 Hz",null,"1~230 V, 50 Hz",null,"3~400 V, 50 Hz"]
["Courant nominal In max",null,"4,60 A",null,"4,60 A ",null,"7,20 A (2x)",null,"1,95 A (2x)"]
["Contacts libre de potentiel",null,"Message d'alarme et de défaut",null,"Message d'alarme et de défaut ",null,"Message de fonctionnement et de défaut",null,"Message de fonctionnement et de défaut"," "]
["Dimensions",null,"672 x 414 x 682 mm",null,"672 x 414 x 682 mm",null,"750 x 600 x 1225 mm",null,"1440 x 780 x 1045 mm"]
["Poids max. ",null,"24 kg",null,"28 kg",null,"91 kg",null,"94 kg"]

{"sheet":"PDF","index":5,"n_rows":65,"n_cols":11,"rows_kept":65,"cut":false,"hidden":true,"merged":[[64,9,64,10],[57,0,57,4],[64,0,64,4],[47,0,47,4],[45,0,45,10],[51,0,51,4],[52,0,52,4],[53,0,53,4],[54,0,54,4],[55,0,55,4],[60,0,60,7],[61,0,61,7],[62,0,62,7],[42,2,42,8],[40,2,40,8],[5,2,5,8],[49,0,49,6],[47,7,47,9],[18,0,18,1],[28,8,28,9],[10,0,15,10],[36,3,36,4],[19,0,19,1],[21,0,21,1],[3,2,3,8],[8,2,8,7],[32,3,32,4],[34,3,34,4],[17,0,17,10],[30,0,30,10],[23,0,23,1],[28,2,28,7],[20,0,20,1],[22,0,22,1],[24,0,24,1],[25,0,25,1]]}
[]
[{"$f":"WiloSelect!A1","v":"POMPSELECTIE REGENWATER"}]
[]
[{"$f":"WiloSelect!A3","v":"Klant"},null,{"$f":"WiloSelect!B3","v":0}]
[]
[{"$f":"WiloSelect!A5","v":"Project"},null,{"$f":"WiloSelect!B5","v":0}]
[]
[]
["Type",null,{"$f":"WiloSelect!I39","v":"RAIN 1-45"}]
[]
[{"$f":"IF(WiloSelect!C9=\"Fr\",VLOOKUP(WiloSelect!B39,'druk wilo'!A2:Y17,25,FALSE),VLOOKUP(WiloSelect!B39,'druk wilo'!A2:Y17,24,FALSE))","v":"Stekkerklare enkelpompen-watervoorzieningsinstallatie als compacte module voor eengezinswoningen en kleine utiliteitsbouw.\n\nVoordelen\n- Gemakkelijke installatie met diverse aansluitmogelijkheden voor stadswater, \n   aanzuiging regenwater en persleiding\n- Gebruiksvriendelijke controller met drukknoppen en weergave van beschikbaarheid van regenwater, \n   systeemdruk, en de bedrijfsstatus\n- Aansluiting laadpomp mogelijk\n- Automatische overschakeling stadswater\n- Belgaqua gekeurd (DIN EN 1717)\n- Potentiaalvrij contact voor optioneel extern alarm\n- Automatische verversing water wachttank\n- Droogloopbeveiliging"}]
[]
[]
[]
[]
[]
[]
[{"$f":"IF(ISBLANK(WiloSelect!A37),\"\",WiloSelect!A37)","v":"PRODUCTLIJST"}]
[{"$f":"IF(ISBLANK(WiloSelect!A38),\"\",WiloSelect!A38)","v":"Beschrijving"},null,{"$f":"IF(ISBLANK(WiloSelect!B38),\"\",WiloSelect!B38)","v":"Artikelnr"},{"$f":"IF(ISBLANK(WiloSelect!C38),\"\",WiloSelect!C38)","v":"Aantal"},{"$f":"IF(ISBLANK(WiloSelect!I38),\"\",WiloSelect!I38)","v":"Beschrijving"},null,null,null,{"$f":"IF(ISBLANK(WiloSelect!H38),\"\",WiloSelect!H38)","v":"Productlink"},{"$f":"IF(ISBLANK(WiloSelect!K38),\"\",WiloSelect!K38)","v":"Bruto Prijs 2022"},{"$f":"IF(ISBLANK(WiloSelect!L40),\"\",WiloSelect!L40)","v":""}]
[{"$f":"IF(ISBLANK(WiloSelect!A39),\"\",WiloSelect!A39)","v":"Regenwaterecuperatiesysteem"},null,{"$f":"IF(ISBLANK(WiloSelect!B39),\"\",WiloSelect!B39)","v":2551470},{"$f":"IF(ISBLANK(WiloSelect!C39),\"\",WiloSelect!C39)","v":1},{"$f":"IF(ISBLANK(WiloSelect!I39),\"\",WiloSelect!I39)","v":"RAIN 1-45"},null,null,null,{"$f":"IF(ISBLANK(WiloSelect!H39),\"\",WiloSelect!H39)","v":"klik hier"},{"$f":"IF(ISBLANK(WiloSelect!K39),\"\",WiloSelect!K39)","v":2486.5500000000002},{"$f":"IF(ISBLANK(WiloSelect!L41),\"\",WiloSelect!L41)","v":""}]
[{"$f":"IF(ISBLANK(WiloSelect!A40),\"\",WiloSelect!A40)","v":"Aanzuigkorf"},null,{"$f":"IF(ISBLANK(WiloSelect!B40),\"\",WiloSelect!B40)","v":2024960},{"$f":"IF(ISBLANK(WiloSelect!C40),\"\",WiloSelect!C40)","v":1},{"$f":"IF(ISBLANK(WiloSelect!I40),\"\",WiloSelect!I40)","v":"GR 5/4\""},null,null,null,{"$f":"IF(ISBLANK(WiloSelect!H40),\"\",WiloSelect!H40)","v":"klik hier"},{"$f":"IF(ISBLANK(WiloSelect!K40),\"\",WiloSelect!K40)","v":125.72},{"$f":"IF(ISBLANK(WiloSelect!L42),\"\",WiloSelect!L42)","v":""}]
[{"$f":"IF(ISBLANK(WiloSelect!A41),\"\",WiloSelect!A41)","v":"Aanzuigslang"},null,{"$f":"IF(ISBLANK(WiloSelect!B41),\"\",WiloSelect!B41)","v":2025973},{"$f":"IF(ISBLANK(WiloSelect!C41),\"\",WiloSelect!C41)","v":1},{"$f":"IF(ISBLANK(WiloSelect!I41),\"\",WiloSelect!I41)","v":"1 1/4\" SE - 1,5m"},null,null,null,{"$f":"IF(ISBLANK(WiloSelect!H41),\"\",WiloSelect!H41)","v":"klik hier"},{"$f":"IF(ISBLANK(WiloSelect!K41),\"\",WiloSelect!K41)","v":110.28}]
[{"$f":"IF(ISBLANK(WiloSelect!A42),\"\",WiloSelect!A42)","v":"Expansievat"},null,{"$f":"IF(ISBLANK(WiloSelect!B42),\"\",WiloSelect!B42)","v":2515525},{"$f":"IF(ISBLANK(WiloSelect!C42),\"\",WiloSelect!C42)","v":1},{"$f":"IF(ISBLANK(WiloSelect!I42),\"\",WiloSelect!I42)","v":"DE 100"},null,null,null,{"$f":"IF(ISBLANK(WiloSelect!H42),\"\",WiloSelect!H42)","v":"klik hier"},{"$f":"IF(ISBLANK(WiloSelect!K42),\"\",WiloSelect!K42)","v":658.68}]
[{"$f":"IF(ISBLANK(WiloSelect!A43),\"\",WiloSelect!A43)","v":"Aansluitset Expansievat"},null,{"$f":"IF(ISBLANK(WiloSelect!B43),\"\",WiloSelect!B43)","v":2926751},{"$f":"IF(ISBLANK(WiloSelect!C43),\"\",WiloSelect!C43)","v":1},{"$f":"IF(ISBLANK(WiloSelect!I43),\"\",WiloSelect!I43)","v":"Aansluitset AG 1\"/Kit de raccordement AG 1\""},null,null,null,{"$f":"IF(ISBLANK(WiloSelect!H43),\"\",WiloSelect!H43)","v":"klik hier"},{"$f":"IF(ISBLANK(WiloSelect!K43),\"\",WiloSelect!K43)","v":239.09},{"$f":"IF(ISBLANK(WiloSelect!L43),\"\",WiloSelect!L43)","v":""}]
[{"$f":"IF(ISBLANK(WiloSelect!A44),\"\",WiloSelect!A44)","v":"Indienststelling"},null,{"$f":"IF(ISBLANK(WiloSelect!B44),\"\",WiloSelect!B44)","v":2160445},{"$f":"IF(ISBLANK(WiloSelect!C44),\"\",WiloSelect!C44)","v":1},{"$f":"IF(ISBLANK(WiloSelect!I44),\"\",WiloSelect!I44)","v":"Indienststelling /Mise en Service RAIN/SANI-S"},null,null,null,{"$f":"IF(ISBLANK(WiloSelect!H44),\"\",WiloSelect!H44)","v":""},{"$f":"IF(ISBLANK(WiloSelect!K44),\"\",WiloSelect!K44)","v":242.79},{"$f":"IF(ISBLANK(WiloSelect!L44),\"\",WiloSelect!L44)","v":""}]
[{"$f":"IF(ISBLANK(WiloSelect!A45),\"\",WiloSelect!A45)","v":""},null,{"$f":"IF(ISBLANK(WiloSelect!B45),\"\",WiloSelect!B45)","v":""},{"$f":"IF(ISBLANK(WiloSelect!C45),\"\",WiloSelect!C45)","v":""},{"$f":"IF(ISBLANK(WiloSelect!I45),\"\",WiloSelect!I45)","v":""},null,null,null,{"$f":"IF(ISBLANK(WiloSelect!H45),\"\",WiloSelect!H45)","v":""},{"$f":"IF(ISBLANK(WiloSelect!K45),\"\",WiloSelect!K45)","v":""},{"$f":"IF(ISBLANK(WiloSelect!L45),\"\",WiloSelect!L45)","v":""}]
[{"$f":"IF(ISBLANK(WiloSelect!A53),\"\",WiloSelect!A53)","v":""},null,{"$f":"IF(ISBLANK(WiloSelect!B53),\"\",WiloSelect!B53)","v":""},{"$f":"IF(ISBLANK(WiloSelect!C53),\"\",WiloSelect!C53)","v":""},{"$f":"IF(ISBLANK(WiloSelect!I53),\"\",WiloSelect!I53)","v":""},null,null,null,{"$f":"IF(ISBLANK(WiloSelect!H53),\"\",WiloSelect!H53)","v":""},{"$f":"IF(ISBLANK(WiloSelect!K53),\"\",WiloSelect!K53)","v":""},{"$f":"IF(ISBLANK(WiloSelect!L53),\"\",WiloSelect!L53)","v":""}]
[null,null,null,null,null,null,null,null,null,null,{"$f":"IF(ISBLANK(WiloSelect!L54),\"\",WiloSelect!L54)","v":""}]
[null,null,{"$f":"WiloSelect!H48","v":"TOTALE BRUTO PRIJS EXCL BTW"},null,null,null,null,null,{"$f":"WiloSelect!K48","v":3863.11}]
[]
[{"$f":"WiloSelect!A7","v":"OPTIES"}]
[]
[{"$f":"WiloSelect!A13","v":"Reservepomp"},null,null,{"$f":"WiloSelect!C13","v":"Neen"}]
[]
[{"$f":"WiloSelect!A17","v":"Frequentiesturing"},null,null,{"$f":"WiloSelect!C17","v":"Neen"}]
[]
[{"$f":"WiloSelect!A15","v":"Indienststelling"},null,null,{"$f":"WiloSelect!C15","v":"Ja"}]
[]
[{"$f":"WiloSelect!A1","v":"POMPSELECTIE REGENWATER"}]
[]
[{"$f":"WiloSelect!A3","v":"Klant"},null,{"$f":"WiloSelect!B3","v":0}]
[]
[{"$f":"WiloSelect!A5","v":"Project"},null,{"$f":"WiloSelect!B5","v":0}]
[]
[]
[{"$f":"WiloSelect!A19","v":"BENODIGD PIEKDEBIET"}]
[]
[{"$f":"WiloSelect!A21","v":"Toepassing"},null,null,null,null,null,null,{"$f":"WiloSelect!C21","v":"School"}]
[]
[{"$f":"WiloSelect!A23","v":"Toestellen"},null,null,null,null,null,null,{"$f":"WiloSelect!B23","v":"Aantal"},{"$f":"WiloSelect!C23","v":"DN [mm]"},{"$f":"WiloSelect!D23","v":"Debiet [l/s]"}]
[]
[{"$f":"WiloSelect!A24","v":"Kraan"},null,null,null,null,null,null,{"$f":"IF(ISBLANK(WiloSelect!B24),\"\",WiloSelect!B24)","v":5},{"$f":"IF(ISBLANK(WiloSelect!C24),\"\",WiloSelect!C24)","v":20},{"$f":"IF(ISBLANK(WiloSelect!D24),\"\",WiloSelect!D24)","v":0.5}]
[{"$f":"WiloSelect!A25","v":"Toilet & Urinoir met reservoir"},null,null,null,null,null,null,{"$f":"IF(ISBLANK(WiloSelect!B25),\"\",WiloSelect!B25)","v":10},{"$f":"IF(ISBLANK(WiloSelect!C25),\"\",WiloSelect!C25)","v":15},{"$f":"IF(ISBLANK(WiloSelect!D25),\"\",WiloSelect!D25)","v":0.13}]
[{"$f":"WiloSelect!A26","v":"Urinoir met directe spoeling"},null,null,null,null,null,null,{"$f":"IF(ISBLANK(WiloSelect!B26),\"\",WiloSelect!B26)","v":""},{"$f":"IF(ISBLANK(WiloSelect!C26),\"\",WiloSelect!C26)","v":15},{"$f":"IF(ISBLANK(WiloSelect!D26),\"\",WiloSelect!D26)","v":0.3}]
[{"$f":"WiloSelect!A27","v":"Toilet met directe spoeling"},null,null,null,null,null,null,{"$f":"IF(ISBLANK(WiloSelect!B27),\"\",WiloSelect!B27)","v":""},{"$f":"IF(ISBLANK(WiloSelect!C27),\"\",WiloSelect!C27)","v":20},{"$f":"IF(ISBLANK(WiloSelect!D27),\"\",WiloSelect!D27)","v":1}]
[{"$f":"WiloSelect!A28","v":"Wasmachine"},null,null,null,null,null,null,{"$f":"IF(ISBLANK(WiloSelect!B28),\"\",WiloSelect!B28)","v":4},{"$f":"IF(ISBLANK(WiloSelect!C28),\"\",WiloSelect!C28)","v":15},{"$f":"IF(ISBLANK(WiloSelect!D28),\"\",WiloSelect!D28)","v":0.15}]
[]
[{"$f":"WiloSelect!A19","v":"BENODIGD PIEKDEBIET"},null,null,null,null,null,null,null,{"$f":"WiloSelect!C19","v":3.8177816043033341},"m³/h"]
[]
[{"$f":"WiloSelect!A32","v":"Hoogte stijgleiding"},null,null,null,null,null,null,null,{"$f":"IF(ISBLANK(WiloSelect!B32),\"\",WiloSelect!B32)","v":8},"m"]
[{"$f":"WiloSelect!A33","v":"Lengte stijgleiding tot verste tappunt"},null,null,null,null,null,null,null,{"$f":"IF(ISBLANK(WiloSelect!B33),\"\",WiloSelect!B33)","v":20},"m"]
[{"$f":"WiloSelect!A34","v":"Hoogte aanzuigleiding"},null,null,null,null,null,null,null,{"$f":"IF(ISBLANK(WiloSelect!B34),\"\",WiloSelect!B34)","v":2},"m"]
[{"$f":"WiloSelect!A35","v":"Lengte aanzuigleiding"},null,null,null,null,null,null,null,{"$f":"IF(ISBLANK(WiloSelect!B35),\"\",WiloSelect!B35)","v":3},"m"]
[]
[{"$f":"WiloSelect!A30","v":"BENODIGDE OPVOERHOOGTE"},null,null,null,null,null,null,null,{"$f":"IF(ISBLANK(WiloSelect!C30),\"\",WiloSelect!C30)","v":26.15},{"$f":"WiloSelect!D30","v":"mWK"}]

{"sheet":"Debiet","index":6,"n_rows":8,"n_cols":5,"rows_kept":8,"cut":false,"hidden":true,"merged":[]}
["Coëfficienten formule piekdebiet / Coefficients formule débit de pointe"]
[null,null,"a","b","c"]
["Hotel","Hotel",0.7,0.48,0.13]
["Ziekenhuis","Hopital",0.75,0.44,0.18]
["School","Ecole",0.91,0.31,0.38]
["Kantoorgebouw","Immeuble de bureaux",0.91,0.31,0.38]
["Woonzorgcentrum","Maison de repos",1.48,0.19,0.94]
["Woongebouw","Immeuble d'habitation",1.48,0.19,0.94]